[Event "Titled Tuesday Blitz December 13 Late 2022"]
[White "Yuan, Qingyu"]
[Black "Mendez Fortes, Eduardo Jesus"]
[WhiteFideId "8609772"]
[BlackFideId "3502376"]
[WhiteElo "2359"]
[BlackElo "2307"]
[Result "0-1"]
[Round "07"]
[TimeControl "180+1"]
[Date "2022.12.13"]
[WhiteClock "0:00:04"]
[BlackClock "0:00:48"]

1. e4 {[%clk 0:03:00]}  e5 {[%clk 0:03:00]} 2. Nf3 {[%clk 0:03:01]}  Nc6 {[%clk 0:03:00]} 3. Bb5 {[%clk 0:03:01]}  Nf6 {[%clk 0:03:00]} 4. d3 {[%clk 0:03:00]}  Bc5 {[%clk 0:03:00]} 5. Bxc6 {[%clk 0:03:00]}  dxc6 {[%clk 0:03:00]} 6. O-O {[%clk 0:03:01]}  Nd7 {[%clk 0:03:00]} 7. c3 {[%clk 0:02:55]}  O-O {[%clk 0:02:59]} 8. d4 {[%clk 0:02:55]}  Bd6 {[%clk 0:02:55]} 9. Re1 {[%clk 0:02:51]}  Re8 {[%clk 0:02:51]} 10. Nbd2 {[%clk 0:02:48]}  c5 {[%clk 0:02:47]} 11. Nc4 {[%clk 0:02:42]}  exd4 {[%clk 0:02:41]} 12. cxd4 {[%clk 0:02:26]}  Bf8 {[%clk 0:02:39]} 13. d5 {[%clk 0:02:21]}  Nb6 {[%clk 0:02:37]} 14. b3 {[%clk 0:02:10]}  c6 {[%clk 0:02:28]} 15. Bb2 {[%clk 0:02:00]}  cxd5 {[%clk 0:02:24]} 16. Nxb6 {[%clk 0:01:58]}  axb6 {[%clk 0:02:20]} 17. exd5 {[%clk 0:01:50]}  Bg4 {[%clk 0:02:08]} 18. Rxe8 {[%clk 0:01:45]}  Qxe8 {[%clk 0:02:09]} 19. h3 {[%clk 0:01:44]}  Bh5 {[%clk 0:02:08]} 20. Qd3 {[%clk 0:01:33]}  Bg6 {[%clk 0:02:03]} 21. Qd2 {[%clk 0:01:32]}  f6 {[%clk 0:02:01]} 22. a4 {[%clk 0:01:13]}  Qd7 {[%clk 0:01:59]} 23. Rd1 {[%clk 0:00:48]}  Bf7 {[%clk 0:01:58]} 24. Qf4 {[%clk 0:00:28]}  Rd8 {[%clk 0:01:55]} 25. Nh4 {[%clk 0:00:25]}  Bd6 {[%clk 0:01:49]} 26. Qf3 {[%clk 0:00:24]}  Bf8 {[%clk 0:01:44]} 27. Nf5 {[%clk 0:00:21]}  Bg6 {[%clk 0:01:33]} 28. Ne3 {[%clk 0:00:21]}  Re8 {[%clk 0:01:28]} 29. Rd2 {[%clk 0:00:20]}  Be4 {[%clk 0:01:27]} 30. Qh5 {[%clk 0:00:17]}  Bd6 {[%clk 0:01:21]} 31. Nc4 {[%clk 0:00:13]}  Bg6 {[%clk 0:01:15]} 32. Qd1 {[%clk 0:00:13]}  Bf4 {[%clk 0:01:13]} 33. Re2 {[%clk 0:00:10]}  Rxe2 {[%clk 0:01:10]} 34. Qxe2 {[%clk 0:00:10]}  Qxd5 {[%clk 0:01:09]} 35. g3 {[%clk 0:00:04]}  Bc7 {[%clk 0:00:59]} 36. Qe7 {[%clk 0:00:04]}  Qd8 {[%clk 0:00:59]} 37. Qxd8+ {[%clk 0:00:03]}  Bxd8 {[%clk 0:01:00]} 38. Bc1 {[%clk 0:00:02]}  Bc2 {[%clk 0:00:59]} 39. Nd2 {[%clk 0:00:02]}  Bc7 {[%clk 0:00:57]} 40. Kf1 {[%clk 0:00:02]}  Bd3+ {[%clk 0:00:56]} 41. Ke1 {[%clk 0:00:02]}  Be5 {[%clk 0:00:56]} 42. Ba3 {[%clk 0:00:03]}  Bc3 {[%clk 0:00:56]} 43. Kd1 {[%clk 0:00:03]}  Kf7 {[%clk 0:00:53]} 44. Nf3 {[%clk 0:00:04]}  Bf5 {[%clk 0:00:50]} 45. h4 {[%clk 0:00:04]}  Bg4 {[%clk 0:00:50]} 46. Ke2 {[%clk 0:00:04]}  Bd4 {[%clk 0:00:48]} 47. Bc1 {[%clk 0:00:04]}  Ke6 {[%clk 0:00:47]} 48. Be3 {[%clk 0:00:04]}  Kd5 {[%clk 0:00:47]} 49. Bxd4 {[%clk 0:00:04]}  cxd4 {[%clk 0:00:48]} 50. h5 {[%clk 0:00:03]}  Ke4 {[%clk 0:00:48]} 51. h6 {[%clk 0:00:03]}  Bxf3+ {[%clk 0:00:48]} 52. Kd2 {[%clk 0:00:04]}  gxh6 {[%clk 0:00:48]} 53. a5 {[%clk 0:00:04]}  bxa5 {[%clk 0:00:48]} 0-1


[Site "https://www.chess.com"]

[Event "Titled Tuesday Blitz December 13 Late 2022"]
[White "Adewumi, Tanitoluwa"]
[Black "Barbot, Pierre"]
[WhiteFideId "30966396"]
[BlackFideId "663727"]
[WhiteElo "2472"]
[BlackElo "2439"]
[Result "1-0"]
[Round "08"]
[TimeControl "180+1"]
[Date "2022.12.14"]
[WhiteClock "0:00:04"]
[BlackClock "0:00:01"]

1. e4 {[%clk 0:02:08]}  c5 {[%clk 0:02:58]} 2. Nf3 {[%clk 0:02:01]}  Nc6 {[%clk 0:02:58]} 3. Bb5 {[%clk 0:01:55]}  g6 {[%clk 0:02:58]} 4. Bxc6 {[%clk 0:01:54]}  dxc6 {[%clk 0:02:59]} 5. d3 {[%clk 0:01:52]}  Bg7 {[%clk 0:03:00]} 6. h3 {[%clk 0:01:52]}  Nf6 {[%clk 0:02:58]} 7. Be3 {[%clk 0:01:49]}  Nd7 {[%clk 0:02:58]} 8. Nc3 {[%clk 0:01:49]}  e5 {[%clk 0:02:56]} 9. Qd2 {[%clk 0:01:48]}  h6 {[%clk 0:02:56]} 10. O-O {[%clk 0:01:46]}  b6 {[%clk 0:02:55]} 11. Nh2 {[%clk 0:01:46]}  Nf8 {[%clk 0:02:55]} 12. f4 {[%clk 0:01:43]}  exf4 {[%clk 0:02:55]} 13. Bxf4 {[%clk 0:01:43]}  Ne6 {[%clk 0:02:53]} 14. Bg3 {[%clk 0:01:43]}  Qg5 {[%clk 0:02:46]} 15. Qe1 {[%clk 0:01:31]}  Nd4 {[%clk 0:02:29]} 16. Qf2 {[%clk 0:01:02]}  Be6 {[%clk 0:02:21]} 17. Bh4 {[%clk 0:00:41]}  Qh5 {[%clk 0:01:54]} 18. Ng4 {[%clk 0:00:31]}  O-O {[%clk 0:01:35]} 19. Nf6+ {[%clk 0:00:26]}  Bxf6 {[%clk 0:01:36]} 20. Bxf6 {[%clk 0:00:25]}  Rae8 {[%clk 0:00:26]} 21. Rae1 {[%clk 0:00:12]}  Kh7 {[%clk 0:00:26]} 22. Re3 {[%clk 0:00:08]}  Bc8 {[%clk 0:00:21]} 23. Rg3 {[%clk 0:00:05]}  Ne6 {[%clk 0:00:20]} 24. Qe3 {[%clk 0:00:05]}  c4 {[%clk 0:00:17]} 25. Rg4 {[%clk 0:00:05]}  Ng5 {[%clk 0:00:06]} 26. Rgf4 {[%clk 0:00:06]}  cxd3 {[%clk 0:00:05]} 27. cxd3 {[%clk 0:00:06]}  Kg8 {[%clk 0:00:04]} 28. Qg3 {[%clk 0:00:05]}  Be6 {[%clk 0:00:04]} 29. Rh4 {[%clk 0:00:04]}  Nxh3+ {[%clk 0:00:01]} 30. gxh3 {[%clk 0:00:04]} 1-0


[Site "https://www.chess.com"]

[Event "Titled Tuesday Blitz December 13 Late 2022"]
[White "Annaberdiyev, Babageldi"]
[Black "Martinez Alcantara, Jose Eduardo"]
[WhiteFideId "14000385"]
[BlackFideId "3805662"]
[WhiteElo "2332"]
[BlackElo "2707"]
[Result "1/2-1/2"]
[Round "08"]
[TimeControl "180+1"]
[Date "2022.12.13"]
[WhiteClock "0:00:20"]
[BlackClock "0:00:58"]

1. e4 {[%clk 0:03:00]}  c5 {[%clk 0:02:59]} 2. Nf3 {[%clk 0:03:00]}  d6 {[%clk 0:03:00]} 3. d4 {[%clk 0:02:58]}  cxd4 {[%clk 0:03:01]} 4. Nxd4 {[%clk 0:02:58]}  Nf6 {[%clk 0:03:02]} 5. Nc3 {[%clk 0:02:56]}  Nc6 {[%clk 0:03:02]} 6. Bc4 {[%clk 0:02:55]}  Qb6 {[%clk 0:03:02]} 7. Nxc6 {[%clk 0:02:43]}  bxc6 {[%clk 0:03:03]} 8. O-O {[%clk 0:02:43]}  g6 {[%clk 0:03:03]} 9. Qe2 {[%clk 0:02:33]}  Nd7 {[%clk 0:03:01]} 10. a4 {[%clk 0:02:30]}  Bg7 {[%clk 0:02:58]} 11. a5 {[%clk 0:02:28]}  Qc7 {[%clk 0:02:59]} 12. h4 {[%clk 0:02:24]}  O-O {[%clk 0:02:58]} 13. h5 {[%clk 0:02:24]}  Rb8 {[%clk 0:02:52]} 14. h6 {[%clk 0:02:22]}  Bh8 {[%clk 0:02:49]} 15. f4 {[%clk 0:02:17]}  e6 {[%clk 0:02:46]} 16. Rf3 {[%clk 0:02:03]}  d5 {[%clk 0:02:46]} 17. Bd3 {[%clk 0:02:01]}  Nc5 {[%clk 0:02:40]} 18. e5 {[%clk 0:01:59]}  f6 {[%clk 0:02:27]} 19. Be3 {[%clk 0:01:54]}  Qe7 {[%clk 0:01:50]} 20. Bd4 {[%clk 0:01:43]}  Nd7 {[%clk 0:01:41]} 21. exf6 {[%clk 0:01:40]}  Bxf6 {[%clk 0:01:41]} 22. Bxf6 {[%clk 0:01:36]}  Qxf6 {[%clk 0:01:41]} 23. Na4 {[%clk 0:01:31]}  c5 {[%clk 0:01:35]} 24. Bb5 {[%clk 0:01:24]}  Qe7 {[%clk 0:01:24]} 25. Bxd7 {[%clk 0:01:14]}  Bxd7 {[%clk 0:01:25]} 26. Qe5 {[%clk 0:01:14]}  Rbe8 {[%clk 0:01:08]} 27. Qg7+ {[%clk 0:01:08]}  Qxg7 {[%clk 0:01:06]} 28. hxg7 {[%clk 0:01:09]}  Kxg7 {[%clk 0:01:07]} 29. Nxc5 {[%clk 0:01:10]}  Bc8 {[%clk 0:01:08]} 30. Re1 {[%clk 0:01:04]}  Rf7 {[%clk 0:01:06]} 31. Nd3 {[%clk 0:00:58]}  Rc7 {[%clk 0:01:01]} 32. Rf2 {[%clk 0:00:56]}  Ba6 {[%clk 0:00:58]} 33. Ne5 {[%clk 0:00:54]}  Rb8 {[%clk 0:00:58]} 34. c3 {[%clk 0:00:51]}  d4 {[%clk 0:00:55]} 35. cxd4 {[%clk 0:00:50]}  Bb7 {[%clk 0:00:56]} 36. Nd3 {[%clk 0:00:45]}  Bd5 {[%clk 0:00:56]} 37. Nc5 {[%clk 0:00:45]}  Kf7 {[%clk 0:00:57]} 38. Na6 {[%clk 0:00:42]}  Rcb7 {[%clk 0:00:58]} 39. Nxb8 {[%clk 0:00:41]}  Rxb8 {[%clk 0:00:58]} 40. Rc2 {[%clk 0:00:32]}  Rb7 {[%clk 0:00:58]} 41. Kf2 {[%clk 0:00:30]}  h5 {[%clk 0:00:57]} 42. Re3 {[%clk 0:00:30]}  Kf6 {[%clk 0:00:57]} 43. g3 {[%clk 0:00:30]}  Kf5 {[%clk 0:00:57]} 44. Re5+ {[%clk 0:00:28]}  Kf6 {[%clk 0:00:58]} 45. Re3 {[%clk 0:00:25]}  Kf5 {[%clk 0:00:58]} 46. Re5+ {[%clk 0:00:24]}  Kf6 {[%clk 0:00:58]} 47. Re3 {[%clk 0:00:20]} 1/2-1/2


[Site "https://www.chess.com"]

[Event "Titled Tuesday Blitz December 13 Late 2022"]
[White "Averjanov, Alexey"]
[Black "Thiel, Thomas"]
[WhiteFideId "14109867"]
[BlackFideId "4615964"]
[WhiteElo "2626"]
[BlackElo "2237"]
[Result "0-1"]
[Round "08"]
[TimeControl "180+1"]
[Date "2022.12.14"]
[WhiteClock "0:00:02"]
[BlackClock "0:00:10"]

1. d4 {[%clk 0:02:54]}  Nf6 {[%clk 0:02:57]} 2. c4 {[%clk 0:02:52]}  g6 {[%clk 0:02:57]} 3. Nc3 {[%clk 0:02:52]}  d5 {[%clk 0:02:56]} 4. cxd5 {[%clk 0:02:53]}  Nxd5 {[%clk 0:02:55]} 5. e4 {[%clk 0:02:54]}  Nxc3 {[%clk 0:02:55]} 6. bxc3 {[%clk 0:02:55]}  Bg7 {[%clk 0:02:54]} 7. Nf3 {[%clk 0:02:56]}  c5 {[%clk 0:02:54]} 8. Be3 {[%clk 0:02:57]}  Qa5 {[%clk 0:02:51]} 9. Qd2 {[%clk 0:02:57]}  Nc6 {[%clk 0:02:49]} 10. Rc1 {[%clk 0:02:56]}  cxd4 {[%clk 0:02:43]} 11. cxd4 {[%clk 0:02:57]}  Qxd2+ {[%clk 0:02:42]} 12. Kxd2 {[%clk 0:02:58]}  O-O {[%clk 0:02:40]} 13. d5 {[%clk 0:02:58]}  Rd8 {[%clk 0:02:39]} 14. Ke1 {[%clk 0:02:58]}  Nb4 {[%clk 0:02:36]} 15. a3 {[%clk 0:02:58]}  Na2 {[%clk 0:02:34]} 16. Rc4 {[%clk 0:02:58]}  e6 {[%clk 0:02:24]} 17. Nd4 {[%clk 0:01:40]}  exd5 {[%clk 0:02:22]} 18. exd5 {[%clk 0:01:33]}  Rxd5 {[%clk 0:02:20]} 19. Be2 {[%clk 0:01:25]}  Ra5 {[%clk 0:01:53]} 20. Kd2 {[%clk 0:01:11]}  Rxa3 {[%clk 0:01:50]} 21. Ra1 {[%clk 0:01:11]}  Be6 {[%clk 0:01:19]} 22. Nxe6 {[%clk 0:00:37]}  Bxa1 {[%clk 0:01:16]} 23. Nc7 {[%clk 0:00:27]}  Rd8+ {[%clk 0:01:12]} 24. Ke1 {[%clk 0:00:25]}  Bc3+ {[%clk 0:01:05]} 25. Kf1 {[%clk 0:00:25]}  Bd2 {[%clk 0:01:00]} 26. Bc5 {[%clk 0:00:20]}  Rc3 {[%clk 0:00:56]} 27. Bxa7 {[%clk 0:00:18]}  Rxc4 {[%clk 0:00:51]} 28. Bxc4 {[%clk 0:00:19]}  Rc8 {[%clk 0:00:47]} 29. Bb6 {[%clk 0:00:13]}  Bf4 {[%clk 0:00:42]} 30. Bxa2 {[%clk 0:00:10]}  Bxc7 {[%clk 0:00:41]} 31. Bd4 {[%clk 0:00:11]}  Re8 {[%clk 0:00:35]} 32. h3 {[%clk 0:00:07]}  Be5 {[%clk 0:00:34]} 33. Bb6 {[%clk 0:00:05]}  Bc3 {[%clk 0:00:33]} 34. g4 {[%clk 0:00:04]}  Re1+ {[%clk 0:00:32]} 35. Kg2 {[%clk 0:00:05]}  Rd1 {[%clk 0:00:32]} 36. Bc4 {[%clk 0:00:04]}  Bd4 {[%clk 0:00:31]} 37. Bc7 {[%clk 0:00:04]}  Rd2 {[%clk 0:00:30]} 38. Bg3 {[%clk 0:00:04]}  Rb2 {[%clk 0:00:26]} 39. Kf3 {[%clk 0:00:04]}  b5 {[%clk 0:00:25]} 40. Bd5 {[%clk 0:00:04]}  b4 {[%clk 0:00:25]} 41. h4 {[%clk 0:00:04]}  b3 {[%clk 0:00:25]} 42. Ke4 {[%clk 0:00:04]}  Bxf2 {[%clk 0:00:24]} 43. Be5 {[%clk 0:00:05]}  Re2+ {[%clk 0:00:22]} 44. Kf4 {[%clk 0:00:05]}  b2 {[%clk 0:00:20]} 45. Ba2 {[%clk 0:00:02]}  Re1 {[%clk 0:00:20]} 46. Bxb2 {[%clk 0:00:02]}  Re2 {[%clk 0:00:19]} 47. Bd5 {[%clk 0:00:01]}  Rxb2 {[%clk 0:00:19]} 48. Kg5 {[%clk 0:00:02]}  Be3+ {[%clk 0:00:17]} 49. Kf6 {[%clk 0:00:02]}  Bd4+ {[%clk 0:00:17]} 50. Kg5 {[%clk 0:00:02]}  Kg7 {[%clk 0:00:17]} 51. h5 {[%clk 0:00:02]}  h6+ {[%clk 0:00:17]} 52. Kf4 {[%clk 0:00:02]}  g5+ {[%clk 0:00:17]} 53. Ke4 {[%clk 0:00:03]}  Ba7 {[%clk 0:00:13]} 54. Kf5 {[%clk 0:00:03]}  Rb4 {[%clk 0:00:13]} 55. Be4 {[%clk 0:00:02]}  Bb8 {[%clk 0:00:10]} 0-1


[Site "https://www.chess.com"]

[Event "Titled Tuesday Blitz December 13 Late 2022"]
[White "Bluebaum, Matthias"]
[Black "Samsonkin, Artiom"]
[WhiteFideId "24651516"]
[BlackFideId "13503111"]
[WhiteElo "2634"]
[BlackElo "2524"]
[Result "0-1"]
[Round "08"]
[TimeControl "180+1"]
[Date "2022.12.13"]
[WhiteClock "0:00:24"]
[BlackClock "0:00:12"]

1. d4 {[%clk 0:03:00]}  Nf6 {[%clk 0:02:59]} 2. c4 {[%clk 0:03:00]}  e6 {[%clk 0:03:00]} 3. Nc3 {[%clk 0:03:00]}  Bb4 {[%clk 0:03:00]} 4. e3 {[%clk 0:03:01]}  O-O {[%clk 0:03:00]} 5. Bd2 {[%clk 0:03:02]}  b6 {[%clk 0:02:59]} 6. Nf3 {[%clk 0:03:01]}  Bb7 {[%clk 0:02:59]} 7. Bd3 {[%clk 0:03:02]}  Bxc3 {[%clk 0:02:54]} 8. Bxc3 {[%clk 0:03:03]}  Ne4 {[%clk 0:02:54]} 9. Bxe4 {[%clk 0:03:04]}  Bxe4 {[%clk 0:02:53]} 10. d5 {[%clk 0:03:04]}  f6 {[%clk 0:02:40]} 11. Nd2 {[%clk 0:03:02]}  Bg6 {[%clk 0:02:36]} 12. h4 {[%clk 0:03:03]}  h6 {[%clk 0:02:27]} 13. Qg4 {[%clk 0:02:59]}  Qe8 {[%clk 0:02:26]} 14. h5 {[%clk 0:02:58]}  Bh7 {[%clk 0:02:16]} 15. Qg3 {[%clk 0:02:32]}  Na6 {[%clk 0:02:11]} 16. b4 {[%clk 0:02:19]}  d6 {[%clk 0:01:49]} 17. a3 {[%clk 0:02:03]}  Nb8 {[%clk 0:01:44]} 18. Qh3 {[%clk 0:01:57]}  Bf5 {[%clk 0:01:22]} 19. Qf3 {[%clk 0:01:56]}  Nd7 {[%clk 0:01:18]} 20. e4 {[%clk 0:01:48]}  Bh7 {[%clk 0:01:18]} 21. Qe2 {[%clk 0:01:48]}  e5 {[%clk 0:01:09]} 22. g4 {[%clk 0:01:46]}  a6 {[%clk 0:00:56]} 23. f3 {[%clk 0:01:44]}  Rc8 {[%clk 0:00:55]} 24. Kf2 {[%clk 0:01:44]}  c6 {[%clk 0:00:52]} 25. Rac1 {[%clk 0:01:43]}  Kh8 {[%clk 0:00:51]} 26. Kg2 {[%clk 0:01:42]}  Bg8 {[%clk 0:00:50]} 27. Rhd1 {[%clk 0:01:40]}  cxd5 {[%clk 0:00:39]} 28. cxd5 {[%clk 0:01:41]}  f5 {[%clk 0:00:39]} 29. exf5 {[%clk 0:01:37]}  Bxd5 {[%clk 0:00:40]} 30. Ne4 {[%clk 0:01:37]}  Bxe4 {[%clk 0:00:36]} 31. Qxe4 {[%clk 0:01:35]}  Nf6 {[%clk 0:00:36]} 32. Qe2 {[%clk 0:01:36]}  Qe7 {[%clk 0:00:30]} 33. Qxa6 {[%clk 0:01:33]}  d5 {[%clk 0:00:23]} 34. Bb2 {[%clk 0:01:24]}  Rxc1 {[%clk 0:00:20]} 35. Rxc1 {[%clk 0:01:25]}  e4 {[%clk 0:00:20]} 36. Qe2 {[%clk 0:01:20]}  exf3+ {[%clk 0:00:15]} 37. Qxf3 {[%clk 0:01:21]}  Ne4 {[%clk 0:00:15]} 38. Rc6 {[%clk 0:01:20]}  Qg5 {[%clk 0:00:15]} 39. Bc1 {[%clk 0:00:53]}  Qh4 {[%clk 0:00:15]} 40. Bf4 {[%clk 0:00:51]}  Rd8 {[%clk 0:00:08]} 41. Rc1 {[%clk 0:00:41]}  Re8 {[%clk 0:00:08]} 42. Qh3 {[%clk 0:00:40]}  Qf2+ {[%clk 0:00:08]} 43. Kh1 {[%clk 0:00:40]}  Qxf4 {[%clk 0:00:08]} 44. Rf1 {[%clk 0:00:18]}  Nf2+ {[%clk 0:00:08]} 45. Kg2 {[%clk 0:00:19]}  Nxh3 {[%clk 0:00:09]} 46. Rxf4 {[%clk 0:00:19]}  Nxf4+ {[%clk 0:00:10]} 47. Kf3 {[%clk 0:00:20]}  d4 {[%clk 0:00:10]} 48. Kxf4 {[%clk 0:00:21]}  d3 {[%clk 0:00:10]} 49. Kf3 {[%clk 0:00:21]}  d2 {[%clk 0:00:11]} 50. f6 {[%clk 0:00:22]}  d1=Q+ {[%clk 0:00:11]} 51. Kf4 {[%clk 0:00:23]}  Qd4+ {[%clk 0:00:12]} 52. Kf5 {[%clk 0:00:24]}  Qxf6# {[%clk 0:00:12]} 0-1


[Site "https://www.chess.com"]

[Event "Titled Tuesday Blitz December 13 Late 2022"]
[White "Burke, Paul"]
[Black "Curtis, John"]
[WhiteFideId "2605767"]
[BlackFideId "3200256"]
[WhiteElo "1926"]
[BlackElo "2203"]
[Result "0-1"]
[Round "08"]
[TimeControl "180+1"]
[Date "2022.12.14"]
[WhiteClock "0:00:34"]
[BlackClock "0:01:44"]

1. e4 {[%clk 0:03:00]}  c5 {[%clk 0:02:58]} 2. d4 {[%clk 0:03:00]}  cxd4 {[%clk 0:02:57]} 3. c3 {[%clk 0:03:00]}  d3 {[%clk 0:02:56]} 4. Bxd3 {[%clk 0:02:59]}  d5 {[%clk 0:02:56]} 5. exd5 {[%clk 0:02:58]}  Qxd5 {[%clk 0:02:56]} 6. Nf3 {[%clk 0:02:57]}  Nc6 {[%clk 0:02:56]} 7. Be2 {[%clk 0:02:47]}  Qxd1+ {[%clk 0:02:51]} 8. Bxd1 {[%clk 0:02:47]}  Bf5 {[%clk 0:02:42]} 9. O-O {[%clk 0:02:39]}  e6 {[%clk 0:02:35]} 10. Be3 {[%clk 0:02:32]}  Nge7 {[%clk 0:02:34]} 11. Nd4 {[%clk 0:02:29]}  Nxd4 {[%clk 0:02:32]} 12. Bxd4 {[%clk 0:02:29]}  Nc6 {[%clk 0:02:32]} 13. Bf3 {[%clk 0:02:21]}  Nxd4 {[%clk 0:02:27]} 14. cxd4 {[%clk 0:02:20]}  O-O-O {[%clk 0:02:27]} 15. Nc3 {[%clk 0:02:10]}  Kb8 {[%clk 0:02:26]} 16. d5 {[%clk 0:02:07]}  Bb4 {[%clk 0:02:24]} 17. Rfd1 {[%clk 0:01:52]}  Bxc3 {[%clk 0:02:11]} 18. bxc3 {[%clk 0:01:52]}  exd5 {[%clk 0:02:07]} 19. Bxd5 {[%clk 0:01:51]}  Rd7 {[%clk 0:02:03]} 20. c4 {[%clk 0:01:26]}  Rhd8 {[%clk 0:01:57]} 21. f3 {[%clk 0:01:16]}  Be6 {[%clk 0:01:56]} 22. Rab1 {[%clk 0:01:11]}  Bxd5 {[%clk 0:01:56]} 23. cxd5 {[%clk 0:01:10]}  Rxd5 {[%clk 0:01:56]} 24. Re1 {[%clk 0:01:11]}  R8d7 {[%clk 0:01:54]} 25. Re8+ {[%clk 0:01:09]}  Kc7 {[%clk 0:01:54]} 26. Rc1+ {[%clk 0:00:59]}  Kb6 {[%clk 0:01:52]} 27. Rb1+ {[%clk 0:00:56]}  Ka6 {[%clk 0:01:52]} 28. Re3 {[%clk 0:00:49]}  Rd1+ {[%clk 0:01:48]} 29. Rxd1 {[%clk 0:00:46]}  Rxd1+ {[%clk 0:01:48]} 30. Kf2 {[%clk 0:00:45]}  Rd2+ {[%clk 0:01:49]} 31. Kg3 {[%clk 0:00:45]}  Rxa2 {[%clk 0:01:47]} 32. Re7 {[%clk 0:00:45]}  b5 {[%clk 0:01:47]} 33. Rxf7 {[%clk 0:00:45]}  b4 {[%clk 0:01:47]} 34. Rxg7 {[%clk 0:00:45]}  b3 {[%clk 0:01:46]} 35. Rg4 {[%clk 0:00:42]}  Ra5 {[%clk 0:01:45]} 36. Rb4 {[%clk 0:00:38]}  Rb5 {[%clk 0:01:45]} 37. Ra4+ {[%clk 0:00:34]}  Kb6 {[%clk 0:01:45]} 38. Ra1 {[%clk 0:00:34]}  b2 {[%clk 0:01:45]} 39. Rb1 {[%clk 0:00:34]}  a5 {[%clk 0:01:45]} 40. Kg4 {[%clk 0:00:33]}  a4 {[%clk 0:01:45]} 41. f4 {[%clk 0:00:34]}  h5+ {[%clk 0:01:44]} 0-1


[Site "https://www.chess.com"]

[Event "Titled Tuesday Blitz December 13 Late 2022"]
[White "De Souza, Cristiano Gomes"]
[Black "Bettalli, Francesco"]
[WhiteFideId "2151758"]
[BlackFideId "2816453"]
[WhiteElo "2068"]
[BlackElo "2216"]
[Result "0-1"]
[Round "08"]
[TimeControl "180+1"]
[Date "2022.12.14"]
[WhiteClock "0:00:10"]
[BlackClock "0:00:50"]

1. d4 {[%clk 0:03:00]}  g6 {[%clk 0:02:58]} 2. c4 {[%clk 0:02:59]}  Bg7 {[%clk 0:02:59]} 3. Nf3 {[%clk 0:03:00]}  d6 {[%clk 0:02:57]} 4. Nc3 {[%clk 0:03:01]}  c5 {[%clk 0:02:57]} 5. e3 {[%clk 0:03:00]}  Nf6 {[%clk 0:02:57]} 6. Be2 {[%clk 0:03:00]}  O-O {[%clk 0:02:58]} 7. O-O {[%clk 0:02:59]}  b6 {[%clk 0:02:58]} 8. b3 {[%clk 0:03:00]}  Bb7 {[%clk 0:02:56]} 9. Bb2 {[%clk 0:03:00]}  Nbd7 {[%clk 0:02:52]} 10. Nb5 {[%clk 0:02:58]}  a6 {[%clk 0:02:51]} 11. Na3 {[%clk 0:02:58]}  Qc7 {[%clk 0:02:50]} 12. Rc1 {[%clk 0:02:56]}  e5 {[%clk 0:02:45]} 13. d5 {[%clk 0:02:49]}  Ne8 {[%clk 0:02:42]} 14. Nd2 {[%clk 0:02:48]}  f5 {[%clk 0:02:42]} 15. e4 {[%clk 0:02:45]}  Nef6 {[%clk 0:02:40]} 16. Bd3 {[%clk 0:02:40]}  Nh5 {[%clk 0:02:38]} 17. g3 {[%clk 0:02:36]}  f4 {[%clk 0:02:38]} 18. Be2 {[%clk 0:02:34]}  fxg3 {[%clk 0:02:38]} 19. hxg3 {[%clk 0:02:32]}  Nhf6 {[%clk 0:02:33]} 20. Nc2 {[%clk 0:02:31]}  Rae8 {[%clk 0:02:32]} 21. Ne3 {[%clk 0:02:31]}  h6 {[%clk 0:02:25]} 22. Ng4 {[%clk 0:02:31]}  Nxg4 {[%clk 0:02:25]} 23. Bxg4 {[%clk 0:02:32]}  Nf6 {[%clk 0:02:25]} 24. Be6+ {[%clk 0:02:32]}  Kh7 {[%clk 0:02:26]} 25. Qe2 {[%clk 0:02:27]}  Bc8 {[%clk 0:02:26]} 26. Bxc8 {[%clk 0:02:26]}  Qxc8 {[%clk 0:02:27]} 27. Kg2 {[%clk 0:02:26]}  Nh5 {[%clk 0:02:22]} 28. Rc3 {[%clk 0:02:14]}  Qd8 {[%clk 0:02:22]} 29. Rf3 {[%clk 0:02:11]}  Qg5 {[%clk 0:02:22]} 30. Qe3 {[%clk 0:02:00]}  Rxf3 {[%clk 0:02:18]} 31. Qxg5 {[%clk 0:01:54]}  Rxf2+ {[%clk 0:02:17]} 32. Rxf2 {[%clk 0:01:48]}  hxg5 {[%clk 0:02:17]} 33. Rf7 {[%clk 0:01:47]}  g4 {[%clk 0:02:15]} 34. Rd7 {[%clk 0:01:40]}  Rf8 {[%clk 0:02:12]} 35. Rxd6 {[%clk 0:01:38]}  Bh6 {[%clk 0:02:12]} 36. Nf1 {[%clk 0:01:34]}  Nf6 {[%clk 0:02:09]} 37. Bxe5 {[%clk 0:01:26]}  Nxe4 {[%clk 0:02:09]} 38. Rd7+ {[%clk 0:01:23]}  Kg8 {[%clk 0:02:09]} 39. Rb7 {[%clk 0:01:19]}  Rf2+ {[%clk 0:02:09]} 40. Kg1 {[%clk 0:01:18]}  Rxa2 {[%clk 0:01:59]} 41. d6 {[%clk 0:01:18]}  Bg5 {[%clk 0:01:58]} 42. Rg7+ {[%clk 0:01:09]}  Kf8 {[%clk 0:01:58]} 43. Rxg6 {[%clk 0:01:08]}  Kf7 {[%clk 0:01:56]} 44. Rg7+ {[%clk 0:00:58]}  Ke6 {[%clk 0:01:56]} 45. Bf4 {[%clk 0:00:51]}  Bxf4 {[%clk 0:01:55]} 46. gxf4 {[%clk 0:00:51]}  Nxd6 {[%clk 0:01:51]} 47. Rxg4 {[%clk 0:00:50]}  Kf5 {[%clk 0:01:50]} 48. Rg5+ {[%clk 0:00:41]}  Kxf4 {[%clk 0:01:49]} 49. Rg6 {[%clk 0:00:40]}  Nf5 {[%clk 0:01:42]} 50. Rxb6 {[%clk 0:00:39]}  a5 {[%clk 0:01:38]} 51. Rf6 {[%clk 0:00:33]}  Rb2 {[%clk 0:01:34]} 52. Ra6 {[%clk 0:00:25]}  Nd4 {[%clk 0:01:32]} 53. Nh2 {[%clk 0:00:18]}  Ne2+ {[%clk 0:01:05]} 54. Kf1 {[%clk 0:00:18]}  Ng3+ {[%clk 0:01:06]} 55. Kg1 {[%clk 0:00:17]}  Rxb3 {[%clk 0:00:59]} 56. Rxa5 {[%clk 0:00:17]}  Ne4 {[%clk 0:00:57]} 57. Ra8 {[%clk 0:00:15]}  Rg3+ {[%clk 0:00:52]} 58. Kf1 {[%clk 0:00:14]}  Ke3 {[%clk 0:00:50]} 59. Rf8 {[%clk 0:00:13]}  Nd2+ {[%clk 0:00:50]} 60. Ke1 {[%clk 0:00:12]}  Rg1+ {[%clk 0:00:50]} 61. Nf1+ {[%clk 0:00:13]}  Rxf1+ {[%clk 0:00:46]} 62. Rxf1 {[%clk 0:00:11]}  Nxf1 {[%clk 0:00:47]} 63. Kxf1 {[%clk 0:00:11]}  Kd3 {[%clk 0:00:47]} 64. Ke1 {[%clk 0:00:12]}  Kxc4 {[%clk 0:00:47]} 65. Kd1 {[%clk 0:00:12]}  Kd3 {[%clk 0:00:48]} 66. Kc1 {[%clk 0:00:13]}  Kc3 {[%clk 0:00:48]} 67. Kb1 {[%clk 0:00:13]}  Kd2 {[%clk 0:00:49]} 68. Kb2 {[%clk 0:00:13]}  c4 {[%clk 0:00:49]} 69. Ka3 {[%clk 0:00:10]}  c3 {[%clk 0:00:50]} 0-1


[Site "https://www.chess.com"]